fUSD/lending_fUSD_20240407
["ID","MTS","AMOUNT","RATE_DAILY","PERIOD"]
[321732554,1712483446815,-1750.0,0.00021,3]
[321732559,1712483447089,-20000.0,0.00021,2]
[321732560,1712483447104,-2206.74559161,0.00021,2]
[321732561,1712483447114,-1366.80616582,0.00021167,2]
[321732562,1712483447124,-151.69349274,0.00021233,2]
[321732563,1712483447134,-4085.72375646,0.00021264,2]
[321732564,1712483447144,-318.0,0.000214,2]
[321732565,1712483447155,-2101.0,0.000214,2]
[321732566,1712483447164,-206.117,0.00021417,2]
[321732567,1712483447174,-214.0,0.00021417,2]
[321732568,1712483447185,-752.781,0.00021417,2]
[321732569,1712483447194,-794.848,0.00021417,2]
[321732570,1712483447203,-506.0,0.0002152,2]
[321732571,1712483447213,-506.0,0.0002152,2]
[321732572,1712483447222,-822.0,0.0002152,2]
[321732573,1712483447232,-212.0,0.00021527,2]
[321732574,1712483447242,-151.69349274,0.00021567,2]
[321732575,1712483447251,-4085.72375646,0.00021627,2]
[321732576,1712483447272,-1366.80616582,0.00021633,2]
[321732577,1712483447282,-18090.55576869,0.0002167,2]
[321732585,1712483487770,156.38,0.00019117,2]
[321732603,1712483576435,1014.04,0.00020861,4]
[321732606,1712483620227,7479.63420085,0.00019117,2]
[321732608,1712483636226,7473.49143307,0.00019117,2]
[321732616,1712483988311,156.38,0.00018785,2]
[321732619,1712484436140,-8882.80524631,0.00019844,2]
[321732620,1712484436164,-500.0,0.00019845,2]
[321732621,1712484436185,-2353.80413367,0.00019846,2]
[321732622,1712484436205,-2178.80662298,0.00019855,2]
[321732623,1712484440045,156.38,0.00018741,2]
[321732624,1712484442501,19621.09462833,0.00018785,2]
[321732625,1712484446666,24624.97877041,0.00018785,2]
[321732626,1712484462384,19621.09462833,0.00018785,2]
[321732627,1712484464611,20304.39969353,0.00018785,2]
[321732628,1712484480409,3684.42229177,0.00018785,2]
[321732629,1712484547113,-8493.34686639,0.0001975,2]
[321732637,1712484631482,-23.00753361,0.0001975,2]
[321732638,1712484631494,-150.0,0.0002,2]
[321732639,1712484631505,-1073.24,0.00020494,2]
[321732640,1712484631514,-390.4,0.00020585,2]
[321732641,1712484631523,-150.0,0.00020606,2]
[321732642,1712484631533,-1896.50974841,0.00020642,2]
[321732643,1712484631546,-315.74470428,0.00020642,2]
[321732644,1712484631558,-21677.74554731,0.00020642,2]
[321732645,1712484631568,-255.7158,0.000207,2]
[321732646,1712484631577,-164.58,0.00020708,2]
[321732647,1712484631586,-150.0,0.00020799,2]
[321732648,1712484631595,-609.6,0.00020816,2]
[321732649,1712484631604,-770.42479052,0.000209,2]
[321732650,1712484631615,-956.76431611,0.000209,2]
[321732651,1712484631626,-7254.06115701,0.000209,2]
[321732652,1712484631638,-181.1573794,0.00020998,2]
[321732653,1712484631649,-315.21200824,0.00020998,2]
[321732654,1712484631660,-390.54077687,0.00020998,2]
[321732655,1712484631669,-155.0,0.00020998,2]
[321732656,1712484631679,-977.5069607,0.00020998,2]
[321732657,1712484631688,-47250.80737303,0.00020999,2]
[321732658,1712484631698,-155.08781742,0.00020999,2]
[321732659,1712484631708,-20538.88104384,0.00021,2]
[321732660,1712484631720,-2673.22863929,0.00021,2]
[321732661,1712484631732,-1084.01598507,0.00021,2]
[321732662,1712484631744,-3249.4690404,0.00021,2]
[321732663,1712484631764,-30377.00857018,0.00021,2]
[321732664,1712484631776,-651.08581171,0.00021,2]
[321732665,1712484631788,-4723.86220876,0.00021,2]
[321732666,1712484631799,-689.71401106,0.00021,2]
[321732667,1712484631811,-792.11001297,0.00021,2]
[321732669,1712484631823,-623.27649731,0.00021,2]
[321732670,1712484631850,-2530.24015824,0.00021,2]
[321732677,1712484637714,-2578.15353988,0.00021,2]
[321732678,1712484637726,-324.46957895,0.00021,2]
[321732679,1712484637825,-10382.20013405,0.00021,2]
[321732681,1712484639602,-14855.16281355,0.00021,2]
[321732682,1712484639632,-1536.11324318,0.00021,2]
[321732683,1712484639788,-800.0,0.00021,2]
[321732684,1712484639897,-14247.870232,0.00021,2]
[321732685,1712484639909,-2629.10638,0.00021,2]
[321732710,1712484642481,-1048.6692735,0.00021,2]
[321732711,1712484642493,-1725.46242003,0.00021,2]
[321732712,1712484642516,-0.00252708,0.00021,2]
[321732713,1712484642534,-47361.98586086,0.00021,2]
[321732714,1712484642546,-146191.36269243,0.00021,2]
[321732715,1712484642555,-712.58430353,0.00021,2]
[321732716,1712484642564,-6159.834,0.00021,2]
[321732717,1712484642574,-956.76431607,0.00021344,2]
[321732718,1712484642583,-7254.06115698,0.00021344,2]
[321732719,1712484642592,-506.567,0.00021421,2]
[321732720,1712484642602,-554.6825,0.0002145,2]
[321732721,1712484642611,-770.42479045,0.00021469,2]
[321732722,1712484642620,-325.96847564,0.0002157,2]
[321732723,1712484642630,-506.0,0.00021575,2]
[321732724,1712484642640,-507.0,0.00021575,2]
[321732725,1712484642649,-789.0,0.00021575,2]
[321732726,1712484642659,-445.98067988,0.00021643,2]
[321732727,1712484642668,-3397.28021682,0.00021649,2]
[321732728,1712484642678,-268.90387653,0.00021668,2]
[321732729,1712484642687,-3076.92415201,0.00021668,2]
[321732730,1712484642696,-206.38747873,0.00021669,2]
[321732731,1712484642706,-970.0234204,0.00021669,2]
[321732732,1712484642715,-2207.71309066,0.0002167,2]
[321732733,1712484642724,-325.75717249,0.0002167,2]
[321732734,1712484642734,-200.0,0.0002167,2]
[321732735,1712484642743,-12739.69317077,0.0002167,2]
[321732736,1712484642767,-950.0,0.0002167,2]
[321732737,1712484642789,-3559.86330083,0.0002167,2]
[321732738,1712484642802,-1948.18110568,0.0002167,2]
[321732739,1712484642814,-2812.04615429,0.0002167,2]
[321732740,1712484642826,-10479.151,0.0002167,2]
[321732741,1712484642916,-24965.74391967,0.0002167,2]
[321732742,1712484642928,-69649.08261713,0.0002167,2]
[321732743,1712484642937,-391.65981914,0.0002167,2]
[321732744,1712484642947,-4700.9792546,0.00021681,2]
[321732745,1712484642956,-1814.4393554,0.00021681,2]
[321732746,1712484642965,-28865.2872229,0.00021681,2]
[321732747,1712484642974,-956.76431607,0.00021789,2]
[321732748,1712484642983,-7254.06115698,0.00021789,2]
[321732749,1712484642992,-210.6222546,0.0002179,2]
[321732750,1712484643002,-2000.0,0.000218,2]
[321732751,1712484643011,-24364.15331366,0.000218,3]
[321732752,1712484643020,-200.0,0.00021887,2]
[321732754,1712484643030,-151.69349274,0.00021899,2]
[321732755,1712484643039,-37275.92809678,0.000219,2]
[321732766,1712484645524,-1199.51012548,0.000219,2]
[321732768,1712484645537,-3264.2630295,0.000219,2]
[321732769,1712484645550,-1687.635,0.000219,2]
[321732770,1712484645564,-3163.83560312,0.000219,2]
[321732771,1712484645649,-273.956365,0.000219,2]
[321732772,1712484645743,-75345.82727997,0.000219,2]
[321732773,1712484645753,-3741.86044598,0.000219,2]
[321732774,1712484645762,-688.42187086,0.000219,2]
[321732775,1712484645771,-188.53243001,0.000219,4]
[321732776,1712484645781,-228.18440236,0.000219,2]
[321732777,1712484645791,-4366.88563231,0.000219,2]
[321732778,1712484645800,-376.20798826,0.000219,2]
[321732779,1712484645811,-250.0,0.00021918,2]
[321732780,1712484645820,-800.0,0.00021973,2]
[321732781,1712484645830,-86280.28954763,0.00021982,2]
[321732782,1712484645842,-14100.17502365,0.00021982,2]
[321732783,1712485008811,156.38,0.00018552,2]
[321732784,1712485470726,156.38,0.00018554,2]
[321732786,1712485666157,155.0,0.0001971,2]
[321732787,1712485689204,155.0,0.0001971,2]
[321732789,1712485704424,-500.0,0.00019711,2]
[321732790,1712485704449,-8882.80524631,0.00019716,2]
[321732791,1712485704475,-27283.92078342,0.00019717,2]
[321732792,1712485774141,-3565.91831499,0.00019715,2]
[321732794,1712485831611,-278.34132937,0.00019711,2]
[321732795,1712485831622,-5375.52133588,0.00019712,2]
[321732796,1712485831631,-266.7377988,0.00019714,2]
[321732797,1712485831640,-3074.28595733,0.00019714,2]
[321732798,1712485831650,-300.0,0.00019755,2]
[321732799,1712485831659,-150.0,0.00019999,2]
[321732800,1712485831668,-4311.7785482,0.00019999,2]
[321732801,1712485831678,-151.0,0.000204,2]
[321732802,1712485831687,-151.0,0.000204,2]
[321732803,1712485831697,-6207.55597726,0.00020403,2]
[321732804,1712485831965,-2137.15,0.00020404,2]
[321732805,1712485831977,-1000.0,0.00020434,2]
[321732806,1712485831987,-23890.0,0.00020495,2]
[321732807,1712485831996,-500.0,0.00020567,2]
[321732808,1712485832006,-8882.80524631,0.00020568,2]
[321732810,1712485832016,-726.08,0.00020628,2]
[321732812,1712485832025,-152.97,0.00020664,2]
[321732814,1712485832035,-5329.69,0.00020703,2]
[321732816,1712485832044,-499.99,0.00020703,2]
[321732818,1712485832053,-2000.84,0.00020807,2]
[321732820,1712485832063,-209.68852141,0.00020898,2]
[321732821,1712485832073,-2096.1915,0.000209,2]
[321732822,1712485832083,-616.20280883,0.00020999,2]
[321732823,1712485832094,-2202.4630916,0.00021,2]
[321732824,1712485832103,-1750.0,0.00021,3]
[321732825,1712485832114,-175.02,0.0002101,2]
[321732827,1712485832123,-152.97,0.00021203,2]
[321732829,1712485832133,-303.0,0.000213,2]
[321732831,1712485832142,-150.0,0.000215,2]
[321732833,1712485832152,-5737.07907444,0.000217,2]
[321732835,1712485832161,-152.97,0.00021741,2]
[321732837,1712485832170,-462.23542,0.0002176,2]
[321732839,1712485832180,-7414.8554,0.00021799,2]
[321732841,1712485832189,-747.4689,0.00021799,2]
[321732843,1712485832198,-2500.0,0.00021799,2]
[321732845,1712485832208,-3139.02863699,0.00021799,2]
[321732847,1712485832217,-1370.8378784,0.000218,2]
[321732849,1712485832226,-798.58561871,0.000218,2]
[321732851,1712485832236,-5077.84280994,0.000218,2]
[321732853,1712485832245,-325.9684756,0.000218,2]
[321732855,1712485832254,-152.12703171,0.00021818,2]
[321732857,1712485832263,-463.54469835,0.00021818,2]
[321732859,1712485832273,-250.80532552,0.00021818,2]
[321732860,1712485832282,-458.9479139,0.00021818,2]
[321732861,1712485832291,-4569.43262731,0.00021877,2]
[321732862,1712485832300,-156.76277611,0.00021887,2]
[321732863,1712485832310,-522.0,0.00021889,2]
[321732864,1712485832319,-522.0,0.00021889,2]
[321732865,1712485832329,-522.0,0.00021889,2]
[321732866,1712485832339,-522.0,0.00021889,2]
[321732867,1712485832348,-354.92057164,0.00021889,2]
[321732868,1712485832357,-522.0,0.0002189,2]
[321732869,1712485832366,-522.0,0.0002189,2]
[321732870,1712485832375,-522.0,0.0002189,2]
[321732871,1712485832385,-522.0,0.0002189,2]
[321732872,1712485832394,-522.0,0.0002189,2]
[321732873,1712485832403,-522.0,0.0002189,2]
[321732874,1712485832412,-354.92057164,0.0002189,2]
[321732875,1712485832421,-354.92057164,0.0002189,2]
[321732876,1712485832430,-3888.08246156,0.00021895,2]
[321732877,1712485832439,-296.92120633,0.00021897,2]
[321732878,1712485832448,-270.67878075,0.00021897,2]
[321732879,1712485832457,-218.0508979,0.00021897,2]
[321732880,1712485832467,-155.39862999,0.00021897,2]
[321732881,1712485832477,-1221.66924641,0.00021897,2]
[321732882,1712485832488,-2172.87344263,0.00021897,2]
[321732883,1712485832497,-193.80556891,0.00021897,2]
[321732884,1712485832507,-485.82894591,0.00021897,2]
[321732885,1712485832516,-236.01814319,0.00021897,2]
[321732886,1712485832526,-1044.54849104,0.00021897,2]
[321732887,1712485832535,-4318.70766298,0.00021897,2]
[321732888,1712485832544,-206.14404155,0.00021897,2]
[321732889,1712485832562,-455.1790143,0.00021897,2]
[321732890,1712485832573,-536.0389282,0.00021897,2]
[321732891,1712485832583,-1042.43557655,0.00021897,2]
[321732892,1712485832593,-500.0,0.00021898,2]
[321732893,1712485832602,-175.78890728,0.00021898,2]
[321732894,1712485832612,-12342.85467204,0.00021898,2]
[321732895,1712485832621,-494.28806484,0.00021898,2]
[321732896,1712485832631,-212.0,0.00021899,2]
[321732897,1712485832640,-250.83789323,0.00021899,2]
[321732898,1712485832650,-8906.46261839,0.00021899,5]
[321732899,1712485832660,-253.11358476,0.00021899,2]
[321732900,1712485832669,-36574.86369398,0.00021899,2]
[321732901,1712485832729,-4733.07281994,0.00021899,2]
[321732902,1712485832741,-748.42002,0.00021899,2]
[321732903,1712485832753,-14829.87544267,0.00021899,2]
[321732904,1712485832766,-538.88,0.00021899,2]
[321732905,1712485833045,-1004.93307856,0.00021899,2]
[321732906,1712485833074,-746775.21948147,0.00021899,2]
[321732907,1712485833083,-135972.20647517,0.000219,2]
[321732908,1712485833096,-320.11080315,0.000219,2]
[321732909,1712485837641,-500.0,0.000219,2]
[321732910,1712485837749,-724.00032612,0.000219,2]
[321732912,1712485839808,-898.84501557,0.000219,2]
[321732915,1712485842804,-6133.91353858,0.000219,2]
[321732916,1712485842915,-598.89456225,0.000219,2]
[321732918,1712485843332,-3979.23869735,0.000219,2]
[321732919,1712485843343,-4558.66962008,0.000219,2]
[321732920,1712485843356,-1726.04945997,0.000219,2]
[321732933,1712485846269,-3601.60762362,0.00021899,2]
[321732934,1712485846280,-611.40941165,0.00021899,2]
[321732935,1712485846291,-376.95926414,0.00021899,2]
[321732936,1712485846302,-352.69794744,0.00021899,2]
[321732937,1712485846313,-500.0,0.00021899,2]
[321732938,1712485846324,-146674.11681241,0.000219,2]
[321732939,1712485846338,-2390.83654837,0.000219,2]
[321732940,1712485846351,-2343.36758848,0.000219,2]
[321732941,1712485846398,-77520.79443004,0.000219,2]
[321732942,1712485846411,-254.32924,0.000219,2]
[321732943,1712485846423,-716.73329979,0.000219,2]
[321732944,1712485846544,-409.26637812,0.000219,2]
[321732945,1712485856419,155.30252456,0.00019708,2]
[321732946,1712485903532,7482.64740264,0.00019708,2]
[321732947,1712485921536,7470.47823128,0.00019708,2]
[321732948,1712485962720,176.44,0.00018995,2]
[321732949,1712486039974,8733.67688355,0.00018995,2]
[321732950,1712486250090,250.0,0.00019,2]
[321732951,1712486267252,250.0,0.00019,2]
[321732952,1712486423607,15.07495797,0.00017542,2]
[321732953,1712486423640,175.15504203,0.00017542,2]
[321732954,1712486459772,500.0,0.00019376,2]
[321732955,1712486470055,551.82837968,0.00017542,2]
[321732956,1712486474941,262.56,0.00019389,2]
[321732957,1712486599750,666.44,0.00019403,2]
[321732958,1712486602203,155.5067665,0.00019389,2]
[321732959,1712486602726,295.82660405,0.00019389,2]
[321732960,1712486603066,437.83151786,0.0001842,2]
[321732961,1712486604731,155.56439644,0.00019389,2]
[321732962,1712486608960,155.61405949,0.00019389,2]
[321732963,1712486609412,207.91,0.00019421,2]
[321732964,1712486628158,365.96,0.00019396,2]
[321732965,1712486716672,249.22,0.00019545,2]
[321732966,1712486716938,249.22,0.00019599,2]
[321732967,1712486717140,249.22,0.00019653,2]
[321732968,1712486764280,500.0,0.00019268,2]
[321732969,1712486780269,250.0,0.00019257,2]
[321732970,1712486806246,500.0,0.00019699,2]
[321732971,1712486806972,162.14,0.00019256,2]
[321732972,1712486811386,250.95098069,0.00019699,2]
[321732973,1712486818032,779.36919387,0.00019699,2]
[321732974,1712486825432,1945.83210374,0.00019699,2]
[321732975,1712486825676,8882.80524631,0.00019699,2]
[321732976,1712486839318,266.7377988,0.00019699,2]
[321732977,1712486840297,3074.28595733,0.00019699,2]
[321732978,1712486841373,23900.0,0.00019284,2]
[321732979,1712486841411,1611.0,0.00019699,2]
[321732980,1712486842435,531.79720941,0.00019699,2]
[321732981,1712486848889,250.0,0.0001969,2]
[321732982,1712486861701,250.0,0.0001969,2]
[321732983,1712486869093,2204.17,0.00019302,2]
[321732984,1712486874774,500.0,0.00019699,2]
[321732985,1712486876732,533.58,0.00019302,2]
[321732986,1712486882557,150.0,0.00019699,2]
[321732987,1712486883444,150.0,0.00019699,2]
[321732988,1712486885514,158.63,0.00019302,2]
[321732989,1712486885921,158.63,0.00019312,2]
[321732990,1712486886150,158.63,0.00019323,2]
[321732991,1712486886369,158.63,0.00019334,2]
[321732992,1712486886558,158.63,0.00019345,2]
[321732993,1712486886766,158.63,0.00019355,2]
[321732994,1712486886991,158.63,0.00019366,2]
[321732995,1712486887386,158.63,0.00019377,2]
[321732996,1712486887592,158.63,0.00019387,2]
[321732997,1712486887950,158.63,0.00019398,2]
[321732998,1712486912952,1210.82205052,0.00019699,2]
[321732999,1712486919874,1222.24259155,0.00019699,2]
[321733000,1712486920163,281.82,0.00017436,2]
[321733001,1712486920361,281.82,0.000197,2]
[321733002,1712486939818,2173.81938731,0.00019699,2]
[321733003,1712486945123,-298.35653775,0.000197,2]
[321733004,1712486945347,-18752.85117547,0.000197,2]
[321733005,1712486951674,200.0,0.00019279,2]
[321733006,1712486953262,500.0,0.00019699,2]
[321733007,1712486962098,-500.0,0.000197,2]
[321733008,1712486966217,741.27,0.00019449,2]
[321733009,1712486968200,14787.0684,0.00019604,2]
[321733010,1712487000521,500.0,0.00019313,2]
[321733011,1712487010879,479.9,0.00019313,2]
[321733012,1712487017597,157.44436768,0.00019636,2]
[321733013,1712487023945,3321.99,0.00019313,2]
[321733014,1712487031854,-134.03582993,0.000197,2]
[321733015,1712487031864,-249.22,0.00019706,2]
[321733016,1712487031875,-484.05363648,0.00019714,2]
[321733017,1712487031887,-158.37,0.00019736,2]
[321733018,1712487031896,-999.99,0.00019737,2]
[321733019,1712487031904,-150.99,0.00019737,2]
[321733020,1712487031913,-158.37,0.00019743,2]
[321733021,1712487031924,-158.37,0.0001975,2]
[321733022,1712487031933,-9015.69,0.0001975,2]
[321733023,1712487031944,-1111.03,0.0001975,2]
[321733024,1712487031954,-158.37,0.00019757,2]
[321733025,1712487031963,-1339.79,0.00019757,2]
[321733026,1712487031974,-249.22,0.0001976,2]
[321733027,1712487031984,-158.37,0.00019764,2]
[321733028,1712487031994,-3874.54,0.00019764,2]
[321733029,1712487032002,-976.58,0.00019764,2]
[321733030,1712487032012,-150.99,0.00019764,2]
[321733031,1712487032022,-158.37,0.00019771,2]
[321733032,1712487032030,-158.37,0.00019778,2]
[321733033,1712487032041,-158.37,0.00019785,2]
[321733034,1712487032050,-157.44436762,0.00019789,2]
[321733035,1712487032059,-158.37,0.00019792,2]
[321733036,1712487032068,-158.37,0.00019799,2]
[321733037,1712487032076,-158.37,0.00019806,2]
[321733038,1712487032086,-158.37,0.00019813,2]
[321733039,1712487032095,-249.22,0.00019813,2]
[321733040,1712487032105,-158.37,0.0001982,2]
[321733041,1712487032114,-158.37,0.00019827,2]
[321733042,1712487032123,-158.37,0.00019834,2]
[321733043,1712487032133,-249.22,0.00019867,2]
[321733044,1712487032143,-249.22,0.00019921,2]
[321733045,1712487032153,-157.44436762,0.00019941,2]
[321733046,1712487032162,-249.22,0.00019974,2]
[321733047,1712487032171,-13545.65655019,0.0002,2]
[321733048,1712487032180,-150.0,0.0002,2]
[321733049,1712487032190,-249.22,0.00020028,2]
[321733050,1712487032199,-249.22,0.00020081,2]
[321733051,1712487032208,-249.22,0.00020135,2]
[321733052,1712487032217,-249.22,0.00020189,2]
[321733053,1712487032226,-625.0,0.00020218,2]
[321733054,1712487032235,-249.22,0.00020242,2]
[321733055,1712487032244,-231.52,0.00020251,2]
[321733056,1712487032253,-1000.0,0.0002028,2]
[321733057,1712487032262,-249.22,0.00020296,2]
[321733058,1712487032271,-249.22,0.0002035,2]
[321733059,1712487032281,-249.22,0.00020403,2]
[321733060,1712487032290,-249.22,0.00020457,2]
[321733061,1712487032299,-249.22,0.0002051,2]
[321733062,1712487032308,-191.796718,0.00020548,2]
[321733063,1712487032317,-818.05,0.00020548,2]
[321733064,1712487032326,-249.22,0.00020564,2]
[321733065,1712487032335,-317.04407063,0.00020646,2]
[321733066,1712487032344,-284.47,0.00020654,2]
[321733067,1712487032354,-352.50290022,0.00020744,2]
[321733068,1712487032363,-214.41428223,0.00020745,2]
[321733069,1712487032372,-155.61853121,0.00020745,2]
[321733070,1712487032381,-499.99,0.00020832,2]
[321733071,1712487032391,-4716.5472582,0.00020855,2]
[321733072,1712487032400,-294.62198742,0.00020855,2]
[321733073,1712487032409,-1219.10332235,0.00020855,2]
[321733074,1712487032419,-338.00508921,0.00020855,2]
[321733075,1712487032429,-500.0,0.00020855,2]
[321733076,1712487032438,-217.91923459,0.00020855,2]
[321733077,1712487032447,-12372.0155,0.00020856,2]
[321733078,1712487032456,-500.0,0.00020856,2]
[321733079,1712487032466,-500.0,0.00020856,2]
[321733080,1712487032475,-642.58111589,0.00020856,2]
[321733081,1712487032484,-500.0,0.00020856,2]
[321733082,1712487032494,-503.668968,0.00020856,2]
[321733083,1712487032503,-209.4196,0.00020857,2]
[321733084,1712487032513,-433.5946,0.00020857,2]
[321733085,1712487032522,-625.0,0.00020857,2]
[321733086,1712487032531,-4018.9749,0.00020857,2]
[321733087,1712487032540,-3696.844,0.00020857,2]
[321733088,1712487032550,-7110.2058,0.00020857,2]
[321733089,1712487032559,-7650.31417742,0.00020857,2]
[321733090,1712487032569,-30627.68246027,0.00020857,2]
[321733091,1712487032578,-173.13703825,0.00020857,2]
[321733092,1712487032587,-152.09161745,0.00020857,2]
[321733093,1712487032597,-375.85470948,0.00020954,2]
[321733094,1712487032606,-261.60041953,0.00020954,2]
[321733095,1712487032616,-155.0,0.00020954,2]
[321733096,1712487032625,-313.87787105,0.00020954,2]
[321733097,1712487032634,-725.10817158,0.00020954,2]
[321733098,1712487032643,-6034.23656717,0.00020954,2]
[321733099,1712487032653,-3070.55960045,0.00020954,2]
[321733100,1712487032662,-213.31627245,0.00020954,2]
[321733101,1712487032672,-267.02206528,0.00020954,2]
[321733102,1712487032681,-1240.66300341,0.00020955,2]
[321733103,1712487032690,-2047.62177569,0.00020955,2]
[321733104,1712487032699,-233.22215638,0.00020955,2]
[321733105,1712487032709,-736193.40108204,0.00020956,2]
[321733106,1712487032718,-3640.9473,0.00020957,2]
[321733107,1712487032727,-537.2129,0.00020957,2]
[321733108,1712487032736,-4448.1807,0.00020957,2]
[321733109,1712487032745,-2462.0193,0.00020957,2]
[321733110,1712487032754,-276075.1381,0.00020957,2]
[321733111,1712487032764,-7500.0,0.00020957,2]
[321733112,1712487032773,-1750.0,0.00021,3]
[321733113,1712487032782,-2205.06251114,0.00021,2]
[321733114,1712487032791,-155.0,0.00021055,2]
[321733115,1712487032801,-1443.85403433,0.00021055,2]
[321733116,1712487032810,-6207.55597726,0.00021055,2]
[321733117,1712487032819,-5461.66750397,0.00021057,2]
[321733118,1712487032830,-1891.0,0.000213,2]
[321733119,1712487032842,-7650.31417741,0.00021304,2]
[321733120,1712487032852,-30627.68246021,0.00021304,2]
[321733121,1712487032861,-152.0916174,0.00021306,2]
[321733122,1712487032870,-191.796718,0.0002137,2]
[321733123,1712487032880,-346.34,0.00021438,2]
[321733124,1712487032889,-150.0,0.00021454,2]
[321733125,1712487032898,-150.0,0.00021465,2]
[321733126,1712487032907,-150.0,0.00021469,2]
[321733127,1712487032918,-150.0,0.00021469,2]
[321733128,1712487032926,-150.0,0.00021515,2]
[321733129,1712487032935,-150.0,0.00021535,2]
[321733130,1712487032945,-779.0,0.00021547,2]
[321733131,1712487032954,-569.0,0.00021547,2]
[321733132,1712487032963,-529.0,0.00021547,2]
[321733133,1712487032973,-150.0,0.00021559,2]
[321733134,1712487032982,-150.0,0.00021572,2]
[321733135,1712487032991,-150.0,0.00021577,2]
[321733136,1712487033000,-150.0,0.0002158,2]
[321733137,1712487033009,-150.0,0.00021583,2]
[321733138,1712487033018,-150.0,0.00021587,2]
[321733139,1712487033028,-150.0,0.00021597,2]
[321733140,1712487033037,-150.0,0.00021601,2]
[321733141,1712487033046,-150.0,0.00021615,2]
[321733142,1712487033055,-150.0,0.00021666,2]
[321733143,1712487033064,-210.0,0.00021669,2]
[321733144,1712487033074,-414.01534,0.0002168,2]
[321733145,1712487033082,-150.0,0.00021689,2]
[321733146,1712487033091,-150.0,0.00021708,2]
[321733147,1712487033100,-150.0,0.00021711,2]
[321733148,1712487033110,-150.0,0.00021731,2]
[321733149,1712487033119,-150.0,0.00021731,2]
[321733150,1712487033128,-150.0,0.00021733,2]
[321733151,1712487033137,-150.0,0.0002174,2]
[321733152,1712487033146,-150.0,0.0002175,2]
[321733153,1712487033156,-7650.31417741,0.00021751,2]
[321733154,1712487033166,-30627.68246021,0.00021751,2]
[321733155,1712487033175,-152.0916174,0.00021755,2]
[321733156,1712487033184,-150.0,0.00021759,2]
[321733157,1712487033193,-150.0,0.00021764,2]
[321733158,1712487033202,-150.0,0.00021769,2]
[321733159,1712487033211,-157.29579016,0.00021781,2]
[321733160,1712487033219,-150.0,0.00021781,2]
[321733161,1712487033229,-150.0,0.00021787,2]
[321733162,1712487033238,-150.0,0.0002179,2]
[321733163,1712487033247,-713.9268,0.00021798,2]
[321733164,1712487033257,-500.0,0.00021799,2]
[321733165,1712487033267,-500.0,0.000218,2]
[321733166,1712487033277,-1000.0,0.000218,2]
[321733167,1712487033286,-4257.89171112,0.000218,2]
[321733168,1712487033295,-232.84193916,0.000218,2]
[321733169,1712487033304,-152.12293492,0.000218,2]
[321733170,1712487033314,-309.0297989,0.000218,2]
[321733171,1712487033323,-884.99218158,0.000218,2]
[321733172,1712487033333,-2911.25708822,0.000218,2]
[321733173,1712487033342,-161.22562357,0.000218,2]
[321733174,1712487033351,-150.94695141,0.000218,2]
[321733175,1712487033360,-324.8816469,0.000218,2]
[321733176,1712487033369,-311.21144994,0.00021802,2]
[321733177,1712487033378,-150.0,0.00021807,2]
[321733178,1712487033388,-1420.28478748,0.00021808,2]
[321733179,1712487033397,-150.0,0.00021816,2]
[321733180,1712487033407,-150.0,0.00021826,2]
[321733181,1712487033417,-150.0,0.00021826,2]
[321733182,1712487033426,-150.0,0.0002185,2]
[321733183,1712487033435,-150.0,0.00021857,2]
[321733184,1712487033445,-150.0,0.00021858,2]
[321733185,1712487033454,-150.0,0.00021873,2]
[321733186,1712487033463,-150.0,0.00021876,2]